fUSD/lending_fUSD_20250207
["ID","MTS","AMOUNT","RATE_DAILY","PERIOD"]
[352028672,1738887085075,-500.0,0.00018219,2]
[352028673,1738887085086,-500.0,0.00018219,2]
[352028674,1738887085098,-500.0,0.00018219,2]
[352028675,1738887085108,-500.0,0.00018219,2]
[352028676,1738887085118,-500.0,0.00018219,2]
[352028677,1738887085128,-760.42,0.00018219,2]
[352028678,1738887085140,-500.0,0.00018219,2]
[352028679,1738887085151,-500.0,0.00018219,2]
[352028680,1738887085162,-500.0,0.00018219,2]
[352028681,1738887085174,-500.0,0.00018219,2]
[352028682,1738887085184,-500.0,0.00018219,2]
[352028683,1738887085194,-500.0,0.00018219,2]
[352028684,1738887085205,-500.0,0.00018219,2]
[352028685,1738887085215,-500.0,0.00018219,2]
[352028686,1738887085225,-1365.46,0.00018219,2]
[352028687,1738887085235,-500.0,0.00018219,2]
[352028688,1738887085246,-500.0,0.00018219,2]
[352028689,1738887085256,-1047.01,0.00018219,2]
[352028690,1738887085266,-500.0,0.00018219,2]
[352028691,1738887085276,-745.99,0.00018219,2]
[352028692,1738887085286,-500.0,0.00018219,2]
[352028693,1738887085297,-500.0,0.00018219,2]
[352028694,1738887085310,-500.0,0.00018219,2]
[352028695,1738887085320,-500.0,0.00018219,2]
[352028696,1738887085331,-500.0,0.00018219,2]
[352028697,1738887085342,-1348.29,0.00018219,2]
[352028698,1738887085352,-500.0,0.00018219,2]
[352028699,1738887085364,-500.0,0.00018219,2]
[352028700,1738887085376,-500.0,0.00018219,2]
[352028701,1738887085387,-500.0,0.00018219,2]
[352028702,1738887085398,-500.0,0.00018219,2]
[352028703,1738887085409,-500.0,0.00018219,2]
[352028704,1738887085419,-500.0,0.00018219,2]
[352028705,1738887085429,-500.0,0.00018219,2]
[352028706,1738887085438,-500.0,0.00018219,2]
[352028707,1738887085453,-500.0,0.00018219,2]
[352028708,1738887085462,-500.0,0.00018219,2]
[352028709,1738887085472,-724.0,0.00018219,2]
[352028710,1738887085483,-500.0,0.00018219,2]
[352028711,1738887085493,-500.0,0.00018219,2]
[352028712,1738887085503,-1127.34,0.00018219,2]
[352028713,1738887085514,-1300.25,0.00018219,2]
[352028714,1738887085525,-500.0,0.00018219,2]
[352028715,1738887085535,-1455.42,0.00018219,2]
[352028716,1738887085545,-500.0,0.00018219,2]
[352028717,1738887085561,-814.3,0.00018219,2]
[352028718,1738887085571,-500.0,0.00018219,2]
[352028719,1738887085581,-500.0,0.00018219,2]
[352028720,1738887085592,-500.0,0.00018219,2]
[352028721,1738887085602,-500.0,0.00018219,2]
[352028722,1738887085612,-500.0,0.00018219,2]
[352028723,1738887085623,-937.0,0.00018219,2]
[352028724,1738887085633,-517.97,0.00018219,2]
[352028725,1738887085643,-500.0,0.00018219,2]
[352028726,1738887085652,-2883.63,0.00018219,2]
[352028727,1738887085662,-500.0,0.00018219,2]
[352028728,1738887085672,-500.0,0.00018219,2]
[352028729,1738887085683,-647.54,0.00018219,2]
[352028730,1738887085693,-1252.07,0.00018219,2]
[352028731,1738887085703,-1086.03,0.00018219,2]
[352028732,1738887085713,-1143.54,0.00018219,2]
[352028733,1738887085723,-1045.05,0.00018219,2]
[352028734,1738887085733,-1780.26,0.00018219,2]
[352028735,1738887085743,-164.47873078,0.00018219,2]
[352028736,1738887085754,-1089.69,0.00018219,2]
[352028737,1738887085765,-1130.82,0.00018219,2]
[352028738,1738887085775,-867.97,0.00018219,2]
[352028739,1738887085785,-1278.31,0.00018219,2]
[352028740,1738887085796,-801.06,0.00018219,2]
[352028741,1738887085815,-652.88,0.00018219,2]
[352028742,1738887085824,-1021.32,0.00018219,2]
[352028743,1738887085835,-721.13,0.00018219,2]
[352028744,1738887085845,-558.13,0.00018219,2]
[352028745,1738887085856,-427.14283791,0.00018219,2]
[352028746,1738887085866,-2386.13,0.00018219,2]
[352028747,1738887085876,-500.0,0.00018219,2]
[352028748,1738887085886,-634.77,0.00018219,2]
[352028749,1738887085896,-781.32,0.00018219,2]
[352028750,1738887085905,-500.0,0.00018219,2]
[352028751,1738887085915,-643.51,0.00018219,2]
[352028752,1738887085924,-622.60436119,0.00018219,2]
[352028753,1738887085934,-803.41,0.00018219,2]
[352028754,1738887085945,-896.94,0.00018219,2]
[352028755,1738887085955,-1571.73,0.00018219,2]
[352028756,1738887085965,-402.31461353,0.00018219,2]
[352028757,1738887085975,-832.99,0.00018219,2]
[352028758,1738887085985,-500.0,0.00018254,2]
[352028759,1738887085998,-262.34926299,0.00018274,5]
[352028760,1738887086008,-500.0,0.00018354,2]
[352028761,1738887086018,-803.37,0.00018354,2]
[352028762,1738887086029,-150.0,0.00018355,2]
[352028763,1738887086038,-553.75,0.00018356,2]
[352028764,1738887086047,-500.0,0.00018356,2]
[352028765,1738887086061,-500.0,0.00018356,2]
[352028766,1738887086072,-188.553296,0.00018356,2]
[352028767,1738887086082,-500.0,0.00018356,2]
[352028768,1738887086091,-239.36832,0.00018356,2]
[352028769,1738887086101,-500.0,0.00018356,2]
[352028770,1738887086109,-500.0,0.00018356,2]
[352028771,1738887086119,-500.0,0.00018356,2]
[352028772,1738887086127,-312.58695927,0.00018356,2]
[352028773,1738887086137,-551.14,0.00018356,2]
[352028774,1738887086147,-500.0,0.00018356,2]
[352028775,1738887086157,-500.0,0.00018356,2]
[352028776,1738887086167,-500.0,0.00018356,2]
[352028777,1738887086177,-403.77,0.00018356,2]
[352028778,1738887086187,-500.0,0.00018356,2]
[352028779,1738887086196,-500.0,0.00018356,2]
[352028780,1738887086205,-500.0,0.00018356,2]
[352028781,1738887086214,-500.0,0.00018356,2]
[352028782,1738887086224,-500.0,0.00018356,2]
[352028783,1738887086234,-599.22,0.00018356,2]
[352028784,1738887086243,-547.32,0.00018356,2]
[352028785,1738887086253,-704.99,0.00018356,2]
[352028786,1738887086262,-362.09928263,0.00018356,2]
[352028787,1738887086272,-500.0,0.00018356,2]
[352028788,1738887086282,-538.11,0.00018356,2]
[352028789,1738887086292,-749.24,0.00018356,2]
[352028790,1738887086303,-500.0,0.00018356,2]
[352028791,1738887086313,-500.0,0.00018356,2]
[352028792,1738887086324,-568.75,0.00018356,2]
[352028793,1738887086334,-500.0,0.00018356,2]
[352028794,1738887086344,-846.43,0.00018356,2]
[352028795,1738887086353,-500.0,0.00018356,2]
[352028796,1738887086363,-875.88,0.00018356,2]
[352028797,1738887086372,-554.71,0.00018356,2]
[352028798,1738887086382,-2472.36,0.00018356,2]
[352028799,1738887086391,-740.46,0.00018356,2]
[352028800,1738887086401,-699.17,0.00018356,2]
[352028801,1738887086410,-673.75,0.00018356,2]
[352028802,1738887086420,-500.23,0.00018356,2]
[352028803,1738887086430,-572.48,0.00018356,2]
[352028804,1738887086440,-680.74,0.00018356,2]
[352028805,1738887086450,-854.5,0.00018356,2]
[352028806,1738887086459,-500.0,0.00018356,2]
[352028807,1738887086469,-659.8,0.00018356,2]
[352028808,1738887086479,-1266.77,0.00018356,2]
[352028809,1738887086488,-888.98,0.00018356,2]
[352028810,1738887086498,-628.17,0.00018356,2]
[352028811,1738887086507,-2607.66,0.00018356,2]
[352028812,1738887086517,-563.12,0.00018356,2]
[352028813,1738887086526,-774.98,0.00018356,2]
[352028814,1738887086536,-500.0,0.00018356,2]
[352028815,1738887086546,-500.0,0.00018356,2]
[352028816,1738887086557,-500.0,0.00018356,2]
[352028817,1738887086568,-854.75,0.00018356,2]
[352028818,1738887086577,-572.06,0.00018356,2]
[352028819,1738887086587,-500.0,0.00018356,2]
[352028820,1738887086597,-224.22693118,0.00018356,2]
[352028821,1738887086607,-761.68,0.00018356,2]
[352028822,1738887086618,-1006.06,0.00018356,2]
[352028823,1738887086627,-500.0,0.00018356,2]
[352028824,1738887086637,-767.84,0.00018356,2]
[352028825,1738887086647,-1113.92,0.00018356,2]
[352028826,1738887086657,-859.98,0.00018356,2]
[352028827,1738887086667,-648.05,0.00018356,2]
[352028828,1738887086677,-790.48,0.00018356,2]
[352028829,1738887086687,-500.0,0.00018356,2]
[352028830,1738887086696,-1534.72,0.00018356,2]
[352028831,1738887086706,-1014.32,0.00018356,2]
[352028832,1738887086715,-954.05,0.00018356,2]
[352028833,1738887086725,-831.75,0.00018356,2]
[352028834,1738887086736,-500.0,0.00018356,2]
[352028835,1738887086748,-721.07,0.00018356,2]
[352028836,1738887086759,-932.77,0.00018356,2]
[352028837,1738887086769,-1177.66,0.00018356,2]
[352028838,1738887086778,-809.96,0.00018356,2]
[352028839,1738887086788,-937.04,0.00018356,2]
[352028840,1738887086798,-819.27,0.00018356,2]
[352028841,1738887086809,-500.0,0.00018356,2]
[352028842,1738887086819,-1021.65,0.00018356,2]
[352028843,1738887086828,-921.55,0.00018356,2]
[352028844,1738887086838,-533.9,0.00018356,2]
[352028845,1738887086953,-1572.61,0.00018356,2]
[352028846,1738887086964,-757.66,0.00018356,2]
[352028847,1738887086974,-508.02,0.00018356,2]
[352028848,1738887086987,-845.1,0.00018356,2]
[352028849,1738887086998,-1427.31,0.00018356,2]
[352028850,1738887087009,-794.65,0.00018356,2]
[352028851,1738887087018,-1046.11,0.00018356,2]
[352028852,1738887087029,-2730.71,0.00018356,2]
[352028853,1738887087038,-806.13,0.00018356,2]
[352028854,1738887087047,-1195.72,0.00018356,2]
[352028855,1738887087058,-845.52,0.00018356,2]
[352028856,1738887087069,-1708.35,0.00018356,2]
[352028857,1738887087080,-1313.56,0.00018356,2]
[352028858,1738887087091,-1698.53,0.00018356,2]
[352028859,1738887087100,-905.6,0.00018356,2]
[352028860,1738887087110,-760.42,0.00018356,2]
[352028861,1738887087119,-1365.46,0.00018356,2]
[352028862,1738887087129,-1047.01,0.00018356,2]
[352028863,1738887087139,-745.99,0.00018356,2]
[352028864,1738887087148,-1348.29,0.00018356,2]
[352028865,1738887087158,-500.0,0.00018356,2]
[352028866,1738887087167,-500.0,0.00018356,2]
[352028867,1738887087178,-1127.34,0.00018356,2]
[352028868,1738887087187,-1300.25,0.00018356,2]
[352028869,1738887087197,-1455.42,0.00018356,2]
[352028870,1738887087207,-814.3,0.00018356,2]
[352028871,1738887087217,-517.97,0.00018356,2]
[352028872,1738887087226,-2883.63,0.00018356,2]
[352028873,1738887087235,-500.0,0.00018356,2]
[352028874,1738887087244,-500.0,0.00018356,2]
[352028875,1738887087254,-500.0,0.00018356,2]
[352028876,1738887087264,-647.54,0.00018356,2]
[352028877,1738887087273,-1252.07,0.00018356,2]
[352028878,1738887087283,-1086.03,0.00018356,2]
[352028879,1738887087292,-1143.54,0.00018356,2]
[352028880,1738887087301,-1045.05,0.00018356,2]
[352028881,1738887087312,-1780.26,0.00018356,2]
[352028882,1738887087322,-1089.69,0.00018356,2]
[352028883,1738887087331,-1130.82,0.00018356,2]
[352028884,1738887087341,-867.97,0.00018356,2]
[352028885,1738887087351,-1278.31,0.00018356,2]
[352028886,1738887087361,-801.06,0.00018356,2]
[352028887,1738887087371,-652.88,0.00018356,2]
[352028888,1738887087380,-1021.32,0.00018356,2]
[352028889,1738887087389,-721.13,0.00018356,2]
[352028890,1738887087399,-558.13,0.00018356,2]
[352028891,1738887087408,-2386.13,0.00018356,2]
[352028892,1738887087418,-500.0,0.00018356,2]
[352028893,1738887087428,-634.77,0.00018356,2]
[352028894,1738887087438,-781.32,0.00018356,2]
[352028895,1738887087448,-500.0,0.00018356,2]
[352028896,1738887087457,-643.51,0.00018356,2]
[352028897,1738887087467,-803.41,0.00018356,2]
[352028898,1738887087478,-896.94,0.00018356,2]
[352028899,1738887087488,-1571.73,0.00018356,2]
[352028900,1738887087498,-832.99,0.00018356,2]
[352028901,1738887087509,-262.34926299,0.00018356,5]
[352028902,1738887087519,-19549.18,0.00018356,2]
[352028903,1738887087529,-200.0,0.00018362,2]
[352028904,1738887087538,-157.4095578,0.00018384,5]
[352028905,1738887087547,-262.34926299,0.00018438,5]
[352028906,1738887087558,-500.0,0.00018454,2]
[352028907,1738887087568,-177.96,0.00018454,2]
[352028908,1738887087578,-803.37,0.00018491,2]
[352028909,1738887087587,-150.0,0.00018492,2]
[352028910,1738887087597,-150.034691,0.00018493,2]
[352028911,1738887087607,-553.75,0.00018493,2]
[352028912,1738887087617,-500.0,0.00018493,2]
[352028913,1738887087626,-500.0,0.00018493,2]
[352028914,1738887087636,-188.553296,0.00018493,2]
[352028915,1738887087646,-500.0,0.00018493,2]
[352028916,1738887087655,-239.36832,0.00018493,2]
[352028917,1738887087665,-500.0,0.00018493,2]
[352028918,1738887087675,-500.0,0.00018493,2]
[352028919,1738887087685,-500.0,0.00018493,2]
[352028920,1738887087695,-551.14,0.00018493,2]
[352028921,1738887087707,-500.0,0.00018493,2]
[352028922,1738887087717,-500.0,0.00018493,2]
[352028923,1738887087727,-500.0,0.00018493,2]
[352028924,1738887087737,-403.77,0.00018493,2]
[352028925,1738887087747,-500.0,0.00018493,2]
[352028926,1738887087757,-500.0,0.00018493,2]
[352028927,1738887087766,-571.63959901,0.00018493,2]
[352028928,1738887087776,-500.0,0.00018493,2]
[352028929,1738887087786,-500.0,0.00018493,2]
[352028930,1738887087797,-599.22,0.00018493,2]
[352028931,1738887087808,-547.32,0.00018493,2]
[352028932,1738887087818,-704.99,0.00018493,2]
[352028933,1738887087828,-500.0,0.00018493,2]
[352028934,1738887087838,-538.11,0.00018493,2]
[352028935,1738887087847,-749.24,0.00018493,2]
[352028936,1738887087857,-284.36095289,0.00018493,2]
[352028937,1738887087867,-500.0,0.00018493,2]
[352028938,1738887087877,-568.75,0.00018493,2]
[352028939,1738887087887,-500.0,0.00018493,2]
[352028940,1738887087896,-846.43,0.00018493,2]
[352028941,1738887087906,-500.0,0.00018493,2]
[352028942,1738887087916,-875.88,0.00018493,2]
[352028943,1738887087926,-554.71,0.00018493,2]
[352028944,1738887087935,-2472.36,0.00018493,2]
[352028945,1738887087945,-740.46,0.00018493,2]
[352028946,1738887087955,-699.17,0.00018493,2]
[352028947,1738887087964,-673.75,0.00018493,2]
[352028948,1738887087975,-500.23,0.00018493,2]
[352028949,1738887087987,-572.48,0.00018493,2]
[352028950,1738887087997,-680.74,0.00018493,2]
[352028951,1738887088006,-854.5,0.00018493,2]
[352028952,1738887088016,-500.0,0.00018493,2]
[352028953,1738887088026,-659.8,0.00018493,2]
[352028954,1738887088036,-1266.77,0.00018493,2]
[352028955,1738887088045,-888.98,0.00018493,2]
[352028956,1738887088055,-2607.66,0.00018493,2]
[352028957,1738887088067,-628.17,0.00018493,2]
[352028958,1738887088076,-563.12,0.00018493,2]
[352028959,1738887088086,-774.98,0.00018493,2]
[352028960,1738887088097,-500.0,0.00018493,2]
[352028961,1738887088107,-500.0,0.00018493,2]
[352028962,1738887088116,-500.0,0.00018493,2]
[352028963,1738887088125,-854.75,0.00018493,2]
[352028964,1738887088135,-572.06,0.00018493,2]
[352028965,1738887088145,-500.0,0.00018493,2]
[352028966,1738887088155,-761.68,0.00018493,2]
[352028967,1738887088166,-1006.06,0.00018493,2]
[352028968,1738887088176,-500.0,0.00018493,2]
[352028969,1738887088185,-767.84,0.00018493,2]
[352028970,1738887088195,-1113.92,0.00018493,2]
[352028971,1738887088205,-859.98,0.00018493,2]
[352028972,1738887088214,-648.05,0.00018493,2]
[352028973,1738887088224,-790.48,0.00018493,2]
[352028974,1738887088232,-500.0,0.00018493,2]
[352028975,1738887088242,-1534.72,0.00018493,2]
[352028976,1738887088252,-1014.32,0.00018493,2]
[352028977,1738887088261,-954.05,0.00018493,2]
[352028978,1738887088271,-831.75,0.00018493,2]
[352028979,1738887088281,-516.7508634,0.00018493,2]
[352028980,1738887088291,-721.07,0.00018493,2]
[352028981,1738887088301,-932.77,0.00018493,2]
[352028982,1738887088311,-1177.66,0.00018493,2]
[352028983,1738887088321,-809.96,0.00018493,2]
[352028984,1738887088332,-937.04,0.00018493,2]
[352028985,1738887088341,-819.27,0.00018493,2]
[352028986,1738887088350,-500.0,0.00018493,2]
[352028987,1738887088359,-1021.65,0.00018493,2]
[352028988,1738887088369,-921.55,0.00018493,2]
[352028989,1738887088379,-533.9,0.00018493,2]
[352028990,1738887088388,-1572.61,0.00018493,2]
[352028991,1738887088398,-757.66,0.00018493,2]
[352028992,1738887088407,-508.02,0.00018493,2]
[352028993,1738887088417,-845.1,0.00018493,2]
[352028994,1738887088427,-1427.31,0.00018493,2]
[352028995,1738887088436,-794.65,0.00018493,2]
[352028996,1738887088445,-1046.11,0.00018493,2]
[352028997,1738887088455,-2730.71,0.00018493,2]
[352028998,1738887088464,-806.13,0.00018493,2]
[352028999,1738887088474,-1195.72,0.00018493,2]
[352029000,1738887088484,-845.52,0.00018493,2]
[352029001,1738887088494,-1708.35,0.00018493,2]
[352029002,1738887088503,-1313.56,0.00018493,2]
[352029003,1738887088513,-1698.53,0.00018493,2]
[352029004,1738887088523,-905.6,0.00018493,2]
[352029005,1738887088533,-760.42,0.00018493,2]
[352029006,1738887088543,-1365.46,0.00018493,2]
[352029007,1738887088553,-1047.01,0.00018493,2]
[352029008,1738887088660,-745.99,0.00018493,2]
[352029009,1738887088670,-1348.29,0.00018493,2]
[352029010,1738887088680,-500.0,0.00018493,2]
[352029011,1738887088689,-500.0,0.00018493,2]
[352029012,1738887088700,-1127.34,0.00018493,2]
[352029013,1738887088710,-1300.25,0.00018493,2]
[352029014,1738887088720,-1455.42,0.00018493,2]
[352029015,1738887088730,-814.3,0.00018493,2]
[352029016,1738887088740,-517.97,0.00018493,2]
[352029017,1738887088750,-2883.63,0.00018493,2]
[352029018,1738887088759,-500.0,0.00018493,2]
[352029019,1738887088769,-500.0,0.00018493,2]
[352029020,1738887088779,-500.0,0.00018493,2]
[352029021,1738887088790,-647.54,0.00018493,2]
[352029022,1738887088799,-1252.07,0.00018493,2]
[352029023,1738887088812,-1086.03,0.00018493,2]
[352029024,1738887088821,-1143.54,0.00018493,2]
[352029025,1738887088832,-1045.05,0.00018493,2]
[352029026,1738887088842,-1780.26,0.00018493,2]
[352029027,1738887088851,-1089.69,0.00018493,2]
[352029028,1738887088860,-1130.82,0.00018493,2]
[352029029,1738887088870,-867.97,0.00018493,2]
[352029030,1738887088879,-1278.31,0.00018493,2]
[352029031,1738887088890,-801.06,0.00018493,2]
[352029032,1738887088899,-652.88,0.00018493,2]
[352029033,1738887088909,-1021.32,0.00018493,2]
[352029034,1738887088919,-721.13,0.00018493,2]
[352029035,1738887088929,-558.13,0.00018493,2]
[352029036,1738887088939,-2386.13,0.00018493,2]
[352029037,1738887088948,-500.0,0.00018493,2]
[352029038,1738887088958,-634.77,0.00018493,2]
[352029039,1738887088968,-781.32,0.00018493,2]
[352029040,1738887088978,-500.0,0.00018493,2]
[352029041,1738887088991,-643.51,0.00018493,2]
[352029042,1738887089000,-803.41,0.00018493,2]
[352029043,1738887089010,-896.94,0.00018493,2]
[352029044,1738887089020,-1571.73,0.00018493,2]
[352029045,1738887089030,-832.99,0.00018493,2]
[352029046,1738887089039,-500.0,0.000185,2]
[352029047,1738887089048,-205.0,0.000185,2]
[352029048,1738887089059,-262.34926299,0.00018521,5]
[352029049,1738887089071,-16199.0,0.00018535,2]
[352029050,1738887089081,-500.0,0.00018554,2]
[352029051,1738887089091,-150.0,0.00018565,2]
[352029052,1738887089101,-444.06694489,0.00018575,2]
[352029053,1738887089110,-154.65,0.000186,2]
[352029054,1738887089119,-154.65,0.000186,2]
[352029055,1738887089127,-262.34926299,0.00018603,5]
[352029056,1738887089136,-803.37,0.00018628,2]
[352029057,1738887089144,-999.0,0.00018628,4]
[352029058,1738887089152,-150.0,0.00018629,2]
[352029059,1738887089160,-10409.63994796,0.0001863,2]
[352029060,1738887089169,-166.769304,0.0001863,2]
[352029061,1738887089178,-553.75,0.0001863,2]
[352029062,1738887089187,-500.0,0.0001863,2]
[352029063,1738887089199,-500.0,0.0001863,2]
[352029064,1738887089208,-188.553296,0.0001863,2]
[352029065,1738887089218,-500.0,0.0001863,2]
[352029066,1738887089227,-239.36832,0.0001863,2]
[352029067,1738887089237,-500.0,0.0001863,2]
[352029068,1738887089247,-500.0,0.0001863,2]
[352029069,1738887089257,-500.0,0.0001863,2]
[352029070,1738887089268,-551.14,0.0001863,2]
[352029071,1738887089278,-500.0,0.0001863,2]
[352029072,1738887089287,-500.0,0.0001863,2]
[352029073,1738887089297,-500.0,0.0001863,2]
[352029074,1738887089308,-403.77,0.0001863,2]
[352029075,1738887089318,-500.0,0.0001863,2]
[352029076,1738887089328,-500.0,0.0001863,2]
[352029077,1738887089337,-500.0,0.0001863,2]
[352029078,1738887089347,-500.0,0.0001863,2]
[352029079,1738887089356,-599.22,0.0001863,2]
[352029080,1738887089366,-547.32,0.0001863,2]
[352029081,1738887089377,-704.99,0.0001863,2]
[352029082,1738887089387,-500.0,0.0001863,2]
[352029083,1738887089401,-538.11,0.0001863,2]
[352029084,1738887089420,-749.24,0.0001863,2]
[352029085,1738887089436,-500.0,0.0001863,2]
[352029086,1738887089456,-568.75,0.0001863,2]
[352029087,1738887089471,-500.0,0.0001863,2]
[352029088,1738887089488,-846.43,0.0001863,2]
[352029089,1738887089507,-500.0,0.0001863,2]
[352029090,1738887089525,-875.88,0.0001863,2]
[352029091,1738887089546,-554.71,0.0001863,2]
[352029092,1738887089564,-2472.36,0.0001863,2]
[352029093,1738887089581,-740.46,0.0001863,2]
[352029094,1738887089596,-699.17,0.0001863,2]
[352029095,1738887089613,-673.75,0.0001863,2]
[352029096,1738887089628,-500.23,0.0001863,2]
[352029097,1738887089643,-572.48,0.0001863,2]
[352029098,1738887089659,-680.74,0.0001863,2]
[352029099,1738887089674,-854.5,0.0001863,2]
[352029100,1738887089688,-500.0,0.0001863,2]
[352029101,1738887089703,-659.8,0.0001863,2]
[352029102,1738887089718,-1266.77,0.0001863,2]
[352029103,1738887089733,-888.98,0.0001863,2]
[352029104,1738887089748,-628.17,0.0001863,2]
[352029105,1738887089763,-2607.66,0.0001863,2]
[352029106,1738887089779,-563.12,0.0001863,2]
[352029107,1738887089793,-774.98,0.0001863,2]
[352029108,1738887089809,-500.0,0.0001863,2]
[352029109,1738887089823,-500.0,0.0001863,2]
[352029110,1738887089838,-500.0,0.0001863,2]
[352029111,1738887089852,-854.75,0.0001863,2]
[352029112,1738887089867,-572.06,0.0001863,2]
[352029113,1738887089882,-500.0,0.0001863,2]
[352029114,1738887089896,-761.68,0.0001863,2]
[352029115,1738887089911,-1006.06,0.0001863,2]
[352029116,1738887089926,-545.25149896,0.0001863,2]
[352029117,1738887089941,-767.84,0.0001863,2]
[352029118,1738887089956,-1113.92,0.0001863,2]
[352029119,1738887089973,-859.98,0.0001863,2]
[352029120,1738887089991,-648.05,0.0001863,2]
[352029121,1738887090008,-790.48,0.0001863,2]
[352029122,1738887090022,-500.0,0.0001863,2]
[352029123,1738887090037,-1534.72,0.0001863,2]
[352029124,1738887090052,-1014.32,0.0001863,2]
[352029125,1738887090067,-831.75,0.0001863,2]
[352029126,1738887090083,-954.05,0.0001863,2]
[352029127,1738887090097,-721.07,0.0001863,2]
[352029128,1738887090112,-932.77,0.0001863,2]
[352029129,1738887090127,-1177.66,0.0001863,2]
[352029130,1738887090143,-809.96,0.0001863,2]
[352029131,1738887090158,-937.04,0.0001863,2]
[352029132,1738887090173,-819.27,0.0001863,2]
[352029133,1738887090187,-165.52,0.0001863,2]
[352029134,1738887090202,-1021.65,0.0001863,2]
[352029135,1738887090216,-921.55,0.0001863,2]
[352029136,1738887090231,-533.9,0.0001863,2]
[352029137,1738887090246,-1572.61,0.0001863,2]
[352029138,1738887090260,-757.66,0.0001863,2]
[352029139,1738887090274,-508.02,0.0001863,2]
[352029140,1738887090289,-845.1,0.0001863,2]
[352029141,1738887090305,-1427.31,0.0001863,2]
[352029142,1738887090320,-794.65,0.0001863,2]
[352029143,1738887090335,-1046.11,0.0001863,2]
[352029144,1738887090350,-2730.71,0.0001863,2]
[352029145,1738887090364,-806.13,0.0001863,2]
[352029146,1738887090379,-1195.72,0.0001863,2]
[352029147,1738887090394,-845.52,0.0001863,2]
[352029148,1738887090409,-1708.35,0.0001863,2]
[352029149,1738887090424,-1313.56,0.0001863,2]
[352029150,1738887090438,-1698.53,0.0001863,2]
[352029151,1738887090453,-905.6,0.0001863,2]
[352029152,1738887090467,-760.42,0.0001863,2]
[352029153,1738887090482,-1365.46,0.0001863,2]
[352029154,1738887090500,-1047.01,0.0001863,2]
[352029155,1738887090514,-745.99,0.0001863,2]
[352029156,1738887090529,-1348.29,0.0001863,2]
[352029157,1738887090544,-500.0,0.0001863,2]
[352029158,1738887090696,-500.0,0.0001863,2]
[352029159,1738887090707,-1127.34,0.0001863,2]
[352029160,1738887090718,-1300.25,0.0001863,2]
[352029161,1738887090729,-1455.42,0.0001863,2]
[352029162,1738887090739,-814.3,0.0001863,2]
[352029163,1738887090747,-517.97,0.0001863,2]
[352029164,1738887090757,-2883.63,0.0001863,2]
[352029165,1738887090768,-500.0,0.0001863,2]
[352029166,1738887090777,-500.0,0.0001863,2]
[352029167,1738887090787,-500.0,0.0001863,2]
[352029168,1738887090796,-647.54,0.0001863,2]
[352029169,1738887090806,-1252.07,0.0001863,2]
[352029170,1738887090815,-1086.03,0.0001863,2]
[352029171,1738887090824,-1143.54,0.0001863,2]